[Event "AI Cup Div-2 2023"]
[Site "Online"]
[Date "2023.09.25"]
[Round "1.3"]
[White "Fedoseev, Vladimir"]
[Black "Kuzubov, Yuriy"]
[Result "1-0"]
[ECO "C43"]
[WhiteElo "2683"]
[BlackElo "2625"]
[Annotator "TA"]
[PlyCount "151"]
[EventDate "2023.09.18"]
[EventType "k.o."]
[EventCountry "NET"]
[SourceTitle "playchess.com"]
[Source "ChessBase"]
[SourceQuality "1"]
[TimeControl "900+3"]

{[%evp 9,151,10,23,-8,0,-14,-4,-4,0,-14,0,0,2,-14,0,-43,-28,-28,-33,-23,0,-22,-28,-97,-57,-73,-62,-94,-70,-151,-166,-140,-130,-151,-86,-87,-74,-146,-144,-168,-154,-213,-115,-176,-194,-260,-258,-347,-283,-292,-274,-395,-386,-373,-385,-392,-376,-452,-455,-503,-316,-458,-400,-477,-460,-632,-466,-854,-854,-842,-827,-832,-529,-589,-517,-644,-4,-4,0,0,0,0,31,43,56,56,56,56,87,87,88,88,89,83,83,49,49,49,83,83,88,83,83,83,83,46,49,49,83,83,88,83,85,0,46,46,46,46,211,211,211,211,211,204,211,211,29958,1286,11124,705,3141,631,330,234,234,234,234,234,234,234,234,230,29991,29992]} 1. e4 {[%emt 0:00:06]} e5 {[%emt 0:00:24]} 2. Nf3 {[%emt 0:00:02]} Nf6 {[%emt 0:00:03]} 3. d4 {[%emt 0:00:08]} Nxe4 {[%emt 0:00:04]} 4. Bd3 {[%emt 0:00:02]} d5 {[%emt 0:00:01]} 5. Nxe5 {[%emt 0:00:20]} Nd7 {[%emt 0:00:09]} 6. Ng4 {[%emt 0:00:17] [#] C43: Petroff Defence: 3 d4.} Ndf6 $146 {[%emt 0:01:35]} ({Predecessor:} 6... Be7 7. Nd2 f5 8. Ne3 Ndf6 9. g3 O-O 10. Ng2 c5 11. O-O cxd4 12. Nb3 Qb6 13. a4 a5 {½-½ Fedoseev,V (2505)-Kasimdzhanov,R (2681) Moscow Aeroflot op-A 10th 2011 (4)}) 7. Ne3 {[%emt 0:00:07]} c5 {[%emt 0:01:21]} 8. c3 {[%emt 0:01:52] The position is equal.} cxd4 {[%emt 0:02:16]} 9. cxd4 {[%emt 0:00:22]} Bb4+ {[%emt 0:00:05]} 10. Nd2 {[%emt 0:00:15]} O-O {[%emt 0:00:05]} 11. O-O {[%emt 0:00:04]} Re8 {[%emt 0:00:18][%cal Oe4f2]} 12. Nf3 {[%emt 0:01:39]} Bd6 {[%emt 0:00:59]} 13. Qb3 {[%emt 0:00:03]} Rb8 {[%emt 0:02:04]} 14. g3 {[%emt 0:01:18]} Qa5 {[%emt 0:01:46]} 15. Bb5 {[%emt 0:00:34]} Re7 {[%emt 0:00:25]} (15... Bh3 16. Bxe8 Rxe8 17. Rd1 $16) 16. Kg2 {[%emt 0:01:39]} (16. Nxd5 Nxd5 17. Qxd5 Be6 18. Qxe4 Qxb5 $17) (16. Rd1 $11 {keeps the balance.}) 16... a6 {[%emt 0:00:43]} 17. Bd3 {[%emt 0:00:09]} Bd7 {[%emt 0:00:08]} 18. a4 {[%emt 0:00:14]} Rbe8 {[%emt 0:00:33]} 19. h3 {[%emt 0:00:37]} (19. Kg1 $15) 19... Qc7 $17 {[%emt 0:00:44][%cal Rd6g3]} 20. Bxe4 {[%emt 0:01:32]} (20. Nxd5 $2 Nxd5 21. Qxd5 Be6 22. Qxe4 (22. Qh5 $2 Nf6 $19) 22... Bxh3+ 23. Kxh3 Rxe4 24. Bxe4 Rxe4 $19) 20... dxe4 {[%emt 0:00:21]} 21. Nd2 {[%emt 0:00:03]} b5 {[%emt 0:00:48]} ({Better is} 21... Rc8 22. Nb1 Qa5) 22. axb5 {[%emt 0:00:03]} axb5 {[%emt 0:00:01]} 23. Rh1 {[%emt 0:00:15]} (23. Qc2 $142) 23... Rc8 {[%emt 0:00:25]} 24. Ndf1 {[%emt 0:00:41]} Qb7 {[%emt 0:00:05]} 25. Bd2 {[%emt 0:00:51]} (25. Qa2 $17) 25... b4 {[%emt 0:00:00]} (25... Be6 $19 26. Qd1 Rd7) 26. d5 {[%emt 0:00:17]} (26. Nh2 $17 {was called for.}) 26... Re5 $19 {[%emt 0:00:11][%cal Od6c5]} 27. Nc4 {[%emt 0:00:11]} (27. Bc3 $142 Rxd5 28. Nxd5 (28. Bxf6 $2 Rd3 $19) 28... Nxd5 29. Bd4) 27... Rxd5 {[%emt 0:00:04][%cal Oe4e3] Hoping for ...e3! White is weak on the light squares} (27... Qxd5 28. Nfe3 Qe6 29. Ra6 $17) 28. Be3 {[%emt 0:01:07]} ({But not} 28. Nfe3 Rxc4 29. Qxc4 (29. Nxc4 $2 e3 $19) 29... Rxd2) 28... Rd3 {[%emt 0:00:17]} 29. Nxd6 {[%emt 0:00:09]} Rxd6 {[%emt 0:00:00]} 30. Kh2 {[%emt 0:00:16]} (30. Qa2 {is a better defense.}) 30... Rd3 {[%emt 0:00:10]} 31. Qa2 {[%emt 0:00:01]} Nd5 {[%emt 0:00:03]} 32. Kg1 {[%emt 0:00:07]} h6 {[%emt 0:00:02]} 33. Qa5 {[%emt 0:00:09]} Be6 {[%emt 0:00:02]} 34. Rh2 {[%emt 0:00:04]} Qc7 {[%emt 0:00:05]} 35. Qa6 {[%emt 0:00:04]} (35. Qxc7 {was necessary.} Rxc7 36. Re1) 35... Qd7 {[%emt 0:00:06]} 36. Re1 {[%emt 0:00:05]} Bxh3 {[%emt 0:00:04]} 37. Bc1 {[%emt 0:00:10]} Be6 {[%emt 0:00:01]} 38. Rxe4 {[%emt 0:00:10]} (38. Rh4 $142 f5 39. Rh2) 38... Rd1 {[%emt 0:00:02]} 39. Bd2 {[%emt 0:00:01]} Nf6 {[%emt 0:00:05][%csl LRd2,LRe4]} 40. Re1 {[%emt 0:00:09]} Rxd2 {[%emt 0:00:01]} 41. Rxe6 {[%emt 0:00:07]} Rd1 {[%emt 0:00:06]} (41... Rxb2 42. Rxf6 gxf6 43. Qxf6 $19) 42. Re7 {[%emt 0:00:04]} Rxf1+ $2 {[%emt 0:00:03]} ({Black should try} 42... Qd8 $19 43. Ra7 Kh7) 43. Kxf1 $11 {[%emt 0:00:01]} Rc1+ {[%emt 0:00:07]} (43... Qxe7 $2 44. Qxc8+ Kh7 45. Rh4 $18) 44. Re1 {[%emt 0:00:03]} Rxe1+ {[%emt 0:00:01]} 45. Kxe1 {[%emt 0:00:00][%mdl 4096] Endgame KQR-KQN} Qf5 {[%emt 0:00:06] ...Qb1+ is the strong threat.} 46. Rh4 $36 {[%emt 0:00:14][%mdl 2048] White is more active.} (46. Qe2 {simplifies} Qb1+ 47. Qd1 Qe4+ 48. Kf1) 46... Qb1+ {[%emt 0:00:05]} 47. Ke2 {[%emt 0:00:01]} Qxb2+ {[%emt 0:00:05]} 48. Kf1 {[%emt 0:00:01]} Qb1+ {[%emt 0:00:05]} 49. Kg2 {[%emt 0:00:02][%mdl 1024] White has strong compensation.} b3 {[%emt 0:00:00]} 50. Rb4 {[%emt 0:00:06]} Qc2 {[%emt 0:00:02]} 51. Qb7 {[%emt 0:00:05]} h5 {[%emt 0:00:07]} 52. Qf3 {[%emt 0:00:14]} b2 {[%emt 0:00:04]} 53. Qb7 {[%emt 0:00:01]} Ng4 {[%emt 0:00:05]} 54. Rxb2 {[%emt 0:00:01]} Qf5 {[%emt 0:00:01]} 55. Re2 {[%emt 0:00:04]} g6 {[%emt 0:00:02]} 56. Qa8+ {[%emt 0:00:05]} Kh7 {[%emt 0:00:02]} 57. Qa1 {[%emt 0:00:05]} Qd5+ {[%emt 0:00:03]} 58. Kg1 {[%emt 0:00:05]} Qf5 {[%emt 0:00:02][%cal Oh5h4]} 59. Qd4 {[%emt 0:00:04] Repels h4} Qf6 {[%emt 0:00:01]} 60. Qd5 {[%emt 0:00:02]} (60. Qxf6 {simplifies} Nxf6 61. Re5 Kg7 62. Kf1) 60... Kg7 {[%emt 0:00:03]} 61. Kg2 {[%emt 0:00:03]} (61. Qe4 $16) 61... h4 {[%emt 0:00:03]} (61... Qxf2+ $1 $11 {was preferrable.} 62. Rxf2 Ne3+ 63. Kf3 Nxd5) 62. f3 $14 {[%emt 0:00:10]} Nh6 {[%emt 0:00:05]} 63. g4 {[%emt 0:00:03][%cal Bg3g4,Bg4g5][%mdl 32] Strongly threatening g5.} Kh7 $2 {[%emt 0:00:06] [#]} (63... Qf4 $14) 64. g5 $1 $18 {[%emt 0:00:06]} Qf5 {[%emt 0:00:03] [#]} 65. Qd2 $1 {[%emt 0:00:03] Active counter play!} Ng8 {[%emt 0:00:02]} 66. Re4 {[%emt 0:00:01]} h3+ {[%emt 0:00:02]} 67. Kg3 {[%emt 0:00:01]} Kg7 $2 {[%emt 0:00:05]} (67... f6 $18 68. gxf6 Qxf6) 68. Qc3+ {[%emt 0:00:04]} (68. Qd4+ $142 Kf8 69. Qb4+ Kg7 70. Qb2+ Kf8 71. Re5 Qd7 72. Rb5 Qd6+ 73. Kxh3) 68... Kf8 {[%emt 0:00:05]} 69. Qe3 {[%emt 0:00:03]} (69. Qa3+ $142 Kg7 70. Qb2+ Kf8 71. Re5) 69... Kg7 {[%emt 0:00:03]} 70. Re5 {[%emt 0:00:04]} (70. Qd4+ $142 Kf8 71. Qb4+ Kg7 72. Qb2+ Nf6 73. Re5 Nh5+ 74. Kf2 Qxe5 75. Qxe5+ Kf8 76. Qd6+ Kg8 77. Qd8+ Kg7 78. Qb8) 70... Qd7 {[%emt 0:00:02]} 71. Rc5 {[%emt 0:00:04] Black must now prevent Qc3+.} Ne7 {[%emt 0:00:04]} 72. Qe5+ {[%emt 0:00:03]} Kg8 {[%emt 0:00:06][%cal Od7d1]} 73. Rc7 {[%emt 0:00:02]} Nf5+ {[%emt 0:00:01]} 74. Kxh3 {[%emt 0:00:01]} Qd8 {[%emt 0:00:05]} 75. Rb7 {[%emt 0:00:02] Rb8 would kill now.} Ne7 $2 {[%emt 0:00:06]} (75... Nd6 $18 76. Rb2 Qf8) 76. Rxe7 {[%emt 0:00:02] White used his chance. Artfully played by Fedoseev.   Weighted Error Value: White=0.44/Black=0.33} 1-0

[Event "AI Cup Div-2 2023"]
[Site "Online"]
[Date "2023.09.25"]
[Round "1.3"]
[White "Safarli, Eltaj"]
[Black "Artemiev, Vladislav"]
[Result "0-1"]
[ECO "C41"]
[WhiteElo "2612"]
[BlackElo "2697"]
[Annotator "TA"]
[PlyCount "142"]
[EventDate "2023.09.18"]
[EventType "k.o."]
[EventCountry "NET"]
[SourceTitle "playchess.com"]
[Source "ChessBase"]
[SourceQuality "1"]
[TimeControl "900+3"]

{[%evp 11,142,51,60,14,12,0,0,7,10,0,0,0,-6,0,0,0,0,0,-7,-30,-29,-31,-31,-33,-30,-30,-30,-30,-32,-35,-36,-35,-32,-35,-35,-35,-35,-39,-24,-22,-18,-18,-18,-31,-18,-30,-9,-9,-13,-13,-15,-48,-46,-46,-46,-46,-46,-46,-46,-46,-46,-82,-82,-120,-115,-114,-114,-106,-82,-106,-106,-162,-173,-304,-109,-123,-123,-124,-24,-27,-25,-173,-93,-312,-79,-221,-221,-202,-121,-200,-179,-242,-224,-222,-14,-13,0,-220,-221,-234,-234,-305,-300,-305,-300,-397,-397,-397,-374,-374,-339,-374,-300,-374,-275,-265,-232,-232,-78,-179,0,-232,-232,-432,-432,-499,-499,-484,-484,-29983,-29984,-29988,-29989]} 1. e4 {[%emt 0:00:04]} e5 {[%emt 0:00:07]} 2. Nf3 {[%emt 0:00:02]} Nc6 {[%emt 0:00:02]} 3. Bc4 {[%emt 0:00:01]} d6 {[%emt 0:00:21]} 4. d4 {[%emt 0:00:22]} Nf6 {[%emt 0:00:12]} 5. Nc3 {[%emt 0:00:43]} Be7 {[%emt 0:01:48]} 6. dxe5 {[%emt 0:00:38]} Nxe5 {[%emt 0:00:10]} 7. Bb3 {[%emt 0:00:01] [#] C41: Philidor Defence.} (7. Nxe5 $14 dxe5 8. Qxd8+ Bxd8 9. a4) 7... c6 $146 {[%emt 0:01:48]} ({Predecessor:} 7... Bg4 8. h3 Nxf3+ 9. gxf3 Bh5 10. Qd3 Nd7 11. f4 Nc5 12. Qd5 Nxb3 13. axb3 Bf3 14. Rg1 Bf6 15. Qd3 Bh5 16. Qb5+ {1-0 Vecchio,R (1740)-Cardenas,I (1367) USA WS/16WM10 email 2016}) 8. h3 {[%emt 0:00:25] Repels Bg4} (8. Nxe5 {simplifies} dxe5 9. Qxd8+ Bxd8 10. a4) 8... b5 {[%emt 0:01:16]} 9. Nxe5 {[%emt 0:03:57] The position is equal.} dxe5 {[%emt 0:00:03]} 10. Qf3 {[%emt 0:00:01]} O-O {[%emt 0:01:07]} 11. Be3 {[%emt 0:00:07]} a5 {[%emt 0:02:16]} 12. a4 {[%emt 0:02:00]} bxa4 {[%emt 0:01:02]} 13. Nxa4 {[%emt 0:00:24]} Ba6 {[%emt 0:00:02]} 14. Nc5 {[%emt 0:01:32]} a4 {[%emt 0:02:13]} 15. Rxa4 {[%emt 0:00:56]} Bb5 {[%emt 0:00:15]} 16. Rxa8 {[%emt 0:00:02]} Qxa8 {[%emt 0:00:01]} 17. c4 $1 {[%emt 0:01:09] Threatens to win with 0-0.} Qa5+ {[%emt 0:02:08]} 18. Bd2 {[%emt 0:00:48]} Qa1+ {[%emt 0:00:02]} 19. Qd1 {[%emt 0:00:03]} Qxd1+ {[%emt 0:00:54]} 20. Kxd1 {[%emt 0:00:01]} Bxc5 {[%emt 0:00:00]} 21. cxb5 {[%emt 0:00:00]} Nxe4 {[%emt 0:00:01]} 22. Ke2 {[%emt 0:00:45]} Nxd2 {[%emt 0:00:03]} (22... Bxf2 23. bxc6 Nxd2 24. Kxd2 $16) (22... Nxf2 23. Rc1 Ne4 24. Be1 $16 (24. bxc6 Nxd2 25. Kxd2 Bb6 $16)) 23. Kxd2 {[%emt 0:00:00]} cxb5 $15 {[%emt 0:00:02][%mdl 4096] Endgame KRB-KRB} (23... Bxf2 24. bxc6 Bb6 25. Rf1 $16) 24. Ke2 {[%emt 0:00:09]} Bd4 {[%emt 0:00:06][%cal Oh7h5]} 25. Rc1 {[%emt 0:00:08]} Bxb2 {[%emt 0:00:05]} 26. Rc7 {[%emt 0:00:01]} b4 {[%emt 0:00:03]} 27. g4 {[%emt 0:00:12]} h6 {[%emt 0:00:02]} 28. Kf3 {[%emt 0:00:13]} g6 {[%emt 0:00:07]} 29. Ke4 {[%emt 0:00:01]} Kg7 {[%emt 0:00:00]} 30. h4 {[%emt 0:00:01]} Bc3 {[%emt 0:00:03]} 31. f3 {[%emt 0:00:09]} Be1 {[%emt 0:00:01]} 32. h5 {[%emt 0:00:01]} gxh5 {[%emt 0:00:01]} 33. gxh5 {[%emt 0:00:01]} Kf6 {[%emt 0:00:01]} 34. Rb7 {[%emt 0:00:09]} Bd2 {[%emt 0:00:06]} 35. Bd5 {[%emt 0:00:05]} Bc3 {[%emt 0:00:04]} 36. Bb3 {[%emt 0:00:02]} Kg5 {[%emt 0:00:05]} 37. Rxf7 {[%emt 0:00:28]} Rd8 {[%emt 0:00:02]} 38. Rf5+ {[%emt 0:00:45]} Kh4 {[%emt 0:00:01]} 39. Bd5 {[%emt 0:00:03]} Rb8 {[%emt 0:00:06]} 40. Bb3 {[%emt 0:00:02]} Ra8 {[%emt 0:00:01]} 41. Rf6 {[%emt 0:00:07]} (41. Kd5 $17) 41... Ra3 $19 {[%emt 0:00:07]} (41... Kxh5 42. Bf7+ Kh4 43. Rxh6+ Kg3 44. Ke3 $11) 42. Bc4 {[%emt 0:00:20]} (42. Bd1 {only move.}) 42... Bd2 $2 {[%emt 0:00:08]} (42... Kxh5 43. f4 $15) (42... b3 $19 43. Rxh6 b2) 43. Rb6 {[%emt 0:00:06]} Re3+ {[%emt 0:00:02]} 44. Kf5 {[%emt 0:00:03]} Bc3 {[%emt 0:00:03]} ({Not} 44... Kxh5 45. f4 $11) ({Better is} 44... Rxf3+ $17 45. Kxe5 Rf2) 45. Bd5 $1 $11 {[%emt 0:00:02]} Kxh5 {[%emt 0:00:03]} 46. Be4 {[%emt 0:00:05] Prevents Rd3} (46. f4 $1 $11 {and White stays safe.}) 46... Re1 {[%emt 0:00:05]} (46... Re2 $1 $19 47. Rd6 Rd2) 47. f4 $2 {[%emt 0:00:02]} (47. Rd6 $17) 47... exf4 $2 {[%emt 0:00:03]} (47... Rf1 $19 {has better winning chances.} 48. Ke6 Rxf4) 48. Bf3+ {[%emt 0:00:03]} (48. Rd6 $17 {is a better defense.}) 48... Kh4 $19 {[%emt 0:00:01] And now ...Kg3 would win.} 49. Kxf4 {[%emt 0:00:03][%cal Rb6h6]} Bd2+ {[%emt 0:00:02]} 50. Kf5 {[%emt 0:00:01]} Kg3 $1 {[%emt 0:00:01]} 51. Be4 {[%emt 0:00:06]} (51. Bh5 $142) 51... Kf2 {[%emt 0:00:05]} 52. Rd6 {[%emt 0:00:03]} Bg5 {[%emt 0:00:02]} ({Black should try} 52... Ke2 $19 {...Kd1 would be deadly.} 53. Rd3 Rc1) 53. Rb6 $11 {[%emt 0:00:02]} Bd2 $2 {[%emt 0:00:02]} (53... Rf1 $11 54. Rxb4 Ke3+ 55. Ke5 Bf6+ 56. Ke6 Bc3) 54. Rd6 $19 {[%emt 0:00:02]} Ke2 $1 {[%emt 0:00:01]} 55. Bd3+ {[%emt 0:00:08]} Kd1 $1 {[%emt 0:00:01]} 56. Rb6 {[%emt 0:00:02]} Re3 {[%emt 0:00:08]} 57. Bc4 {[%emt 0:00:01]} Rg3 {[%emt 0:00:04]} 58. Bf7 {[%emt 0:00:04]} Kc2 {[%emt 0:00:02]} 59. Rc6+ {[%emt 0:00:02]} Rc3 {[%emt 0:00:01]} 60. Rb6 {[%emt 0:00:00]} Rf3+ {[%emt 0:00:04]} 61. Kg6 {[%emt 0:00:01]} Rg3+ {[%emt 0:00:04]} 62. Kf5 {[%emt 0:00:02]} Rg5+ {[%emt 0:00:01]} ({Don't go for} 62... Rf3+ $2 63. Kg6 $19) 63. Ke4 {[%emt 0:00:02]} h5 {[%emt 0:00:05]} 64. Rc6+ {[%emt 0:00:02]} Kb2 $2 {[%emt 0:00:02]} (64... Bc3 $19 {and Black stays clearly on top. White must now prevent ...b3.} 65. Kf4 Rb5 66. Bg6+ Kb2) 65. Rd6 {[%emt 0:00:04] [#]} (65. Kd3 $17) 65... Kc2 {[%emt 0:00:07]} (65... Kc1 $142 $1 66. Rc6+ Kd1) 66. Rc6+ {[%emt 0:00:02]} Bc3 {[%emt 0:00:01] Hoping for ...b3.} 67. Rh6 $2 {[%emt 0:00:04]} (67. Kf4 {might work better.} Rb5 68. Bg6+ Kb2 69. Bd3) 67... b3 {[%emt 0:00:01][%cal Bb4b3,Bb3b2][%mdl 32]} 68. Rxh5 {[%emt 0:00:02] [#]} b2 $1 {[%emt 0:00:08] ( -> ...Rxh5)} 69. Rh2+ {[%emt 0:00:12]} Bd2 {[%emt 0:00:01]} 70. Ba2 {[%emt 0:00:03]} (70. Rh1 $19 b1=Q 71. Rxb1 Kxb1 72. Kd3) 70... Ra5 {[%emt 0:00:01]} (70... b1=B 71. Bxb1+ Kc3 72. Ba2 $11) 71. Bc4 {[%emt 0:00:05]} Ra4 {[%emt 0:00:01] Weighted Error Value: White=0.24 (precise) /Black=0.22 (precise)} ({Stronger than} 71... b1=B 72. Bd3+ Kc3 73. Bxb1 $11) 0-1

[Event "AI Cup Div-2 2023"]
[Site "Online"]
[Date "2023.09.25"]
[Round "1.4"]
[White "Sarana, Alexey"]
[Black "Eljanov, Pavel"]
[Result "1-0"]
[ECO "B06"]
[WhiteElo "2693"]
[BlackElo "2695"]
[Annotator "TA"]
[PlyCount "75"]
[EventDate "2023.09.18"]
[EventType "k.o."]
[EventCountry "NET"]
[SourceTitle "playchess.com"]
[Source "ChessBase"]
[SourceQuality "1"]
[TimeControl "900+3"]

{[%evp 9,75,15,34,16,29,23,22,-8,0,-26,-8,-16,-10,-47,-45,-42,-45,-42,-43,-45,-48,-41,-43,-63,0,0,0,-4,33,0,40,-26,81,87,88,80,75,62,206,218,222,176,178,193,201,29,192,157,514,516,510,500,482,360,562,160,213,0,0,0,166,0,1341,825,823,798,29990,29991]} 1. d4 {[%emt 0:00:03]} g6 {[%emt 0:00:08]} 2. e4 {[%emt 0:00:02]} Bg7 {[%emt 0:00:01]} 3. Nf3 {[%emt 0:00:05]} d6 {[%emt 0:00:03]} 4. Bc4 {[%emt 0:00:00]} e6 {[%emt 0:00:12]} 5. h4 {[%emt 0:00:12]} h6 {[%emt 0:00:07] [#]} 6. Bb3 $146 {[%emt 0:00:07] B06: Modern Defence.} ({Predecessor:} 6. c3 Ne7 7. Nbd2 b6 8. Nf1 Bb7 9. Qe2 Nd7 10. Ng3 Nf6 11. Bd2 d5 12. Bb5+ c6 {1-0 Nakamura,H (2736)-Artemiev,V (2711) Chess.com Bullet op KO blitz 2020 (2.2)}) 6... Nf6 {[%emt 0:01:33]} 7. Qe2 {[%emt 0:00:34]} Nc6 {[%emt 0:00:33]} 8. c3 {[%emt 0:00:04][%cal Oh4h5] The position is equal.} e5 {[%emt 0:02:06]} 9. d5 {[%emt 0:01:30] [#] And now Ba4 would win.} Nb8 {[%emt 0:00:34]} 10. Nbd2 {[%emt 0:00:04]} Nbd7 {[%emt 0:00:19]} 11. Nc4 {[%emt 0:00:12]} O-O {[%emt 0:00:26]} 12. Bc2 {[%emt 0:00:07]} a5 {[%emt 0:01:01]} 13. Be3 {[%emt 0:00:14]} b5 {[%emt 0:00:42]} 14. Ncd2 {[%emt 0:00:40]} b4 {[%emt 0:00:35]} 15. Nh2 {[%emt 0:00:25]} Nh5 {[%emt 0:02:44]} 16. g3 {[%emt 0:00:02]} bxc3 {[%emt 0:00:34]} (16... Qe8 $1 $15) 17. bxc3 $11 {[%emt 0:00:02]} Ba6 {[%emt 0:00:01]} 18. c4 {[%emt 0:00:01]} Rb8 {[%emt 0:00:27]} 19. O-O {[%emt 0:00:02]} (19. Ng4 $5) 19... Rb2 {[%emt 0:00:15]} 20. Bd3 {[%emt 0:00:02]} ({White should try} 20. Nb3 $14) 20... Nc5 {[%emt 0:00:45]} (20... f5 $1 $11 {remains equal.} 21. exf5 Qe8) 21. Bxc5 $16 {[%emt 0:00:06]} dxc5 {[%emt 0:00:00]} 22. Rfb1 {[%emt 0:00:01]} Rb6 {[%emt 0:00:33]} 23. Nb3 {[%emt 0:00:21]} Nf4 {[%emt 0:00:24]} 24. gxf4 $18 {[%emt 0:00:03]} exf4 {[%emt 0:00:01]} 25. Nxc5 {[%emt 0:00:06]} Bxa1 {[%emt 0:00:04]} 26. Rxa1 {[%emt 0:00:02]} Bc8 {[%emt 0:00:10]} 27. h5 {[%emt 0:00:28]} (27. Nf3 $18) 27... Qh4 $2 {[%emt 0:00:15]} (27... Re8 $1 $11) 28. Kh1 {[%emt 0:00:03] Black must now prevent Rg1.} gxh5 $2 {[%emt 0:00:17]} (28... Re8 $16 {is tougher.}) 29. e5 {[%emt 0:00:01]} Kh8 {[%emt 0:00:18]} 30. e6 {[%emt 0:00:18]} fxe6 {[%emt 0:00:12] Black is weak on the light squares} 31. dxe6 {[%emt 0:00:38] Hoping for Rg1.} (31. Qe4 Qe7 32. dxe6 Rg8 $18) 31... Qf6 {[%emt 0:00:13]} (31... Qe7 $142) 32. Rg1 $2 {[%emt 0:00:22]} (32. Re1 $18 {is the precise move to win.}) 32... Bxe6 $16 {[%emt 0:00:09]} 33. Rg6 {[%emt 0:00:43] Prevents Rg8.} (33. Qxh5 Bf5 $14) 33... Qa1+ {[%emt 0:00:15]} 34. Rg1 {[%emt 0:00:01] Some like it hot} Qf6 {[%emt 0:00:15] [#]} 35. Rg6 $2 $40 {[%emt 0:00:01][%mdl 128] White mounts an attack.} ({Don't take} 35. Qxh5 $6 Bf5 $14) ({White should play} 35. Ne4 $1 $18 {[%cal Re4f6]} Qf7 36. c5) 35... f3 $2 {[%emt 0:00:15][%mdl 8192]} 36. Qe3 {[%emt 0:00:13][%cal Re3h6]} ({Worse is} 36. Rxf6 fxe2 37. Rxf8+ Kg7 38. Bxe2 (38. Nxe6+ $2 Rxe6 39. Bxe2 Kxf8 $19) 38... Kxf8 $11) 36... Qf4 {[%emt 0:00:18]} 37. Rxh6+ {[%emt 0:00:08]} Kg7 {[%emt 0:00:05]} 38. Nxe6+ {[%emt 0:00:03] Weighted Error Value: White=0.56/Black=0.63} 1-0